fUSD/lending_fUSD_20250401
["ID","MTS","AMOUNT","RATE_DAILY","PERIOD"]
[356944320,1743472238325,-1655.02,0.00015,2]
[356944321,1743472238338,-3345.02101906,0.00015,2]
[356944421,1743472241639,-14954.28515239,0.00015,2]
[356944422,1743472241680,-9502.67247795,0.00015,2]
[356944423,1743472241691,-4726.16,0.00015,2]
[356944424,1743472241701,-614.88815969,0.00015,2]
[356944425,1743472241712,-451.9737682,0.00015,2]
[356944453,1743472243871,-294.10955606,0.00015,2]
[356944454,1743472245793,-256.36309974,0.00015,2]
[356944460,1743472261502,235.01328107,0.0001485,2]
[356944461,1743472288119,171.40485,0.00015,13]
[356944462,1743472324558,151.0,0.00033836,30]
[356944463,1743472325181,151.0,0.00033836,30]
[356944464,1743472416087,435.35489824,0.00014756,2]
[356944465,1743472544207,277.3687,0.000148,2]
[356944466,1743472545021,1000.0,0.00033836,30]
[356944467,1743472545593,1000.0,0.00033836,30]
[356944468,1743472546221,1000.0,0.00033836,30]
[356944469,1743472546834,1000.0,0.00033836,30]
[356944470,1743472547427,1000.0,0.00033836,30]
[356944471,1743472548004,1000.0,0.00033836,30]
[356944472,1743472548579,1000.0,0.00033836,30]
[356944473,1743472549150,1000.0,0.00033836,30]
[356944474,1743472550226,1000.0,0.00033836,30]
[356944475,1743472550869,1000.0,0.00033836,30]
[356944476,1743472551481,1000.0,0.00033836,30]
[356944477,1743472552114,1000.0,0.00033836,30]
[356944478,1743472552694,1000.0,0.00033836,30]
[356944479,1743472553268,1000.0,0.00033836,30]
[356944480,1743472553839,1000.0,0.00033836,30]
[356944481,1743472554875,1000.0,0.00033836,30]
[356944482,1743472555433,1000.0,0.00033836,30]
[356944483,1743472556204,1000.0,0.00033836,30]
[356944484,1743472556816,1000.0,0.00033836,30]
[356944485,1743472557556,1000.0,0.00033836,30]
[356944486,1743472558162,1000.0,0.00033836,30]
[356944487,1743472558751,1000.0,0.00033836,30]
[356944488,1743472559323,1000.0,0.00033836,30]
[356944489,1743472559932,1000.0,0.00033836,30]
[356944490,1743472560546,1000.0,0.00033836,30]
[356944491,1743472561232,1000.0,0.00033836,30]
[356944492,1743472561806,1000.0,0.00033836,30]
[356944493,1743472562435,1004.57781951,0.00033836,30]
[356944494,1743472587595,1491.6801,0.000148,2]
[356944495,1743472588808,345.6,0.00025329,120]
[356944496,1743472589141,345.6,0.00027632,120]
[356944497,1743472593602,171.40485,0.0001735,18]
[356944498,1743472593658,171.40486,0.0001985,23]
[356944499,1743472611019,7295.80940708,0.000148,2]
[356944500,1743472681915,-187.87681593,0.00014877,2]
[356944501,1743472722900,-150.0,0.00014888,2]
[356944502,1743472722924,-37.87681593,0.00014898,2]
[356944503,1743472742460,-152.35,0.00014877,2]
[356944504,1743472799166,2500.0,0.000148,2]
[356944505,1743472907317,435.35489824,0.00014746,2]
[356944506,1743472920816,-152.35,0.0001489,2]
[356944507,1743472983616,-150.0,0.0001489,2]
[356944508,1743472984737,-214.16260374,0.0001489,2]
[356944509,1743472994881,249.3677,0.000148,2]
[356944510,1743473104033,-152.35,0.0001489,2]
[356944511,1743473162420,268.3202,0.000148,2]
[356944512,1743473162564,-150.0,0.0001489,2]
[356944513,1743473192426,216.7953,0.000148,2]
[356944514,1743473221519,6566.22846639,0.000148,2]
[356944515,1743473223445,171.40485075,0.00015,13]
[356944516,1743473224462,-150.0,0.0001489,2]
[356944517,1743473291207,5809.0,0.00033836,30]
[356944520,1743473383945,-3786.98164073,0.0001489,2]
[356944521,1743473383972,-150.0,0.00014894,2]
[356944522,1743473384001,-205.70529771,0.00014899,2]
[356944523,1743473384026,-187.82449186,0.00014899,2]
[356944524,1743473384056,-500.0,0.00014899,2]
[356944525,1743473384083,-500.0,0.00014899,2]
[356944526,1743473384111,-379.93984579,0.00014899,2]
[356944527,1743473384139,-150.0,0.00014899,2]
[356944528,1743473384166,-4377.76399521,0.000149,2]
[356944529,1743473384208,-99.01690479,0.000149,2]
[356944530,1743473384236,-7842.97092796,0.000149,2]
[356944531,1743473387727,152.35,0.000148,2]
[356944532,1743473395850,1002.9758995,0.000148,2]
[356944533,1743473398458,435.35489824,0.00014742,2]
[356944534,1743473409252,-300.0,0.00014899,2]
[356944535,1743473409280,-10301.81933338,0.000149,2]
[356944536,1743473409328,-2072.70023866,0.000149,2]
[356944537,1743473409357,-963.1789,0.000149,2]
[356944538,1743473409386,-287.578,0.000149,2]
[356944539,1743473409414,-1069.5592,0.000149,2]
[356944540,1743473409443,-6208.80299472,0.000149,2]
[356944541,1743473409484,-818.50772719,0.000149,2]
[356944546,1743473431916,-18646.7307762,0.000149,2]
[356944547,1743473431929,-1000.09,0.000149,2]
[356944548,1743473431946,-177667.79910189,0.000149,2]
[356944549,1743473431956,-1041.4486,0.000149,2]
[356944550,1743473431965,-222.1777,0.000149,2]
[356944551,1743473431974,-1000.0,0.000149,2]
[356944552,1743473431984,-337.8061,0.000149,2]
[356944553,1743473431994,-212.058,0.000149,2]
[356944554,1743473432003,-188.75550597,0.000149,2]
[356944555,1743473432012,-160.00141479,0.000149,2]
[356944556,1743473432022,-150.0,0.00014936,2]
[356944557,1743473432031,-503.40460286,0.00014973,2]
[356944558,1743473432040,-509.91281383,0.00014973,2]
[356944559,1743473432050,-501.79370607,0.00014973,2]
[356944560,1743473432059,-251.31500577,0.00014973,2]
[356944561,1743473432068,-502.61241796,0.00014973,2]
[356944562,1743473432077,-504.43450239,0.00014973,2]
[356944563,1743473432086,-300.0,0.00014999,2]
[356944564,1743473432095,-698.69442099,0.00014999,2]
[356944565,1743473432105,-754.0,0.00015,2]
[356944566,1743473432115,-185868.6358487,0.00015,2]
[356944567,1743473432127,-692.5527292,0.00015,2]
[356944568,1743473432144,-3095.0618137,0.00015,2]
[356944569,1743473432155,-474.74993295,0.00015,2]
[356944595,1743473437942,-458.84855654,0.00015,2]
[356944596,1743473437996,-222.15144346,0.00015,2]
[356944597,1743473438006,-518.59855654,0.00015,2]
[356944598,1743473438051,-663.85289851,0.00015,2]
[356944599,1743473438062,-908.4259283,0.00015,2]
[356944602,1743473440037,-1617.991351,0.00015,2]
[356944603,1743473440303,-271.24477199,0.00015,2]
[356944604,1743473440419,-293.22318818,0.00015,2]
[356944605,1743473440514,-656.14,0.00015,2]
[356944606,1743473440569,-3330.14103743,0.00015,2]
[356944612,1743473442976,-10107.79408125,0.00015,2]
[356944615,1743473446211,-13685.67759169,0.00015,2]
[356944616,1743473462310,815.5062,0.000148,2]
[356944617,1743473462572,-151.16351891,0.00014898,2]
[356944618,1743473522687,-175.5847004,0.00014898,2]
[356944619,1743473540307,300.0,0.000148,5]
[356944620,1743473542414,700.0,0.000149,5]
[356944621,1743473549951,330.16854188,0.00014799,2]
[356944622,1743473554697,1000.0,0.000148,2]
[356944623,1743473745458,962.51,0.0001452,2]
[356944624,1743473887309,435.35489824,0.00014687,2]
[356944625,1743474328547,5592.04146132,0.00033832,30]
[356944626,1743474333321,150.77267405,0.0002,120]
[356944627,1743474357403,-171.04350908,0.0001489,2]
[356944628,1743474362647,-151.0,0.00014889,2]
[356944630,1743474376544,435.35489824,0.00014683,2]
[356944631,1743474382789,155.89133497,0.00033832,120]
[356944632,1743474396731,-149.0,0.00014889,2]
[356944633,1743474396757,-16.474061,0.00014889,2]
[356944634,1743474423588,-150.0,0.00014888,2]
[356944635,1743474428999,156.96684562,0.00033832,30]
[356944636,1743474430157,300.0,0.000147,5]
[356944637,1743474432250,600.0,0.000148,5]
[356944638,1743474434347,900.0,0.000149,5]
[356944639,1743474529304,379.761893,0.00014814,2]
[356944640,1743474536807,-483.525939,0.00014889,2]
[356944642,1743474536839,-500.0,0.00014889,2]
[356944644,1743474536869,-500.0,0.00014889,2]
[356944646,1743474536899,-500.0,0.00014889,2]
[356944648,1743474536928,-500.0,0.00014889,2]
[356944649,1743474536957,-500.0,0.00014889,2]
[356944651,1743474536986,-500.0,0.00014889,2]
[356944652,1743474537017,-500.0,0.00014889,2]
[356944653,1743474537047,-500.0,0.00014889,2]
[356944654,1743474537078,-500.0,0.00014889,2]
[356944655,1743474537107,-500.0,0.00014889,2]
[356944656,1743474537147,-553.92144776,0.00014889,2]
[356944657,1743474537178,-4736.46814463,0.0001489,2]
[356944658,1743474537220,-5657.51171523,0.0001489,2]
[356944659,1743474554506,2096.0661653,0.00033832,120]
[356944660,1743474561724,-11102.54407632,0.0001489,2]
[356944661,1743474561776,-6520.52179245,0.0001489,2]
[356944665,1743474587028,-11455.0053937,0.0001489,2]
[356944666,1743474587089,-5401.08047116,0.0001489,2]
[356944681,1743474632528,-308.79,0.0001489,2]
[356944683,1743474632539,-700.0,0.0001489,2]
[356944684,1743474632551,-14389.2098627,0.0001489,2]
[356944691,1743474632609,-705.99337913,0.0001489,2]
[356944693,1743474632619,-1716.35675238,0.0001489,2]
[356944787,1743474638009,-1324.52969833,0.0001489,2]
[356944788,1743474638021,-3774.53643325,0.0001489,2]
[356944789,1743474638063,-22577.14554219,0.0001489,2]
[356944790,1743474638073,-150.0,0.00014895,2]
[356944791,1743474638082,-150.0,0.00014899,2]
[356944792,1743474638091,-500.0,0.00014899,2]
[356944793,1743474638101,-172.65793864,0.00014899,2]
[356944794,1743474638112,-1000.0,0.000149,2]
[356944795,1743474638122,-698.9863,0.000149,2]
[356944796,1743474638132,-161.79043368,0.000149,2]
[356944797,1743474638143,-176.03685319,0.000149,2]
[356944798,1743474638153,-11498.87431799,0.000149,2]
[356944799,1743474638163,-14622.92817731,0.000149,2]
[356944800,1743474638171,-655.08849476,0.000149,2]
[356944801,1743474638181,-502.12034144,0.00014973,2]
[356944802,1743474638191,-1821.68787836,0.0001499,2]
[356944803,1743474638200,-300.0,0.00014999,2]
[356944804,1743474638209,-507.0,0.00015,2]
[356944805,1743474638219,-35930.73845878,0.00015,2]
[356944806,1743474638238,-963.26438089,0.00015,2]
[356944807,1743474638249,-472.560984,0.00015,2]
[356944813,1743474638383,-262.22543021,0.00015,2]
[356944934,1743474640148,-53791.07,0.00015,2]
[356944935,1743474640255,-806.86903139,0.00015,2]
[356944936,1743474640265,-695380.76578972,0.00015,2]
[356944937,1743474640274,-111405.37633434,0.00015,2]
[356944938,1743474640282,-197435.31611128,0.00015,2]
[356944939,1743474640291,-191377.0764158,0.00015,2]
[356944940,1743474640301,-151.63813,0.00015,2]
[356944941,1743474640311,-151.0,0.00015,2]
[356944942,1743474640320,-151.0,0.00015,2]
[356944943,1743474640330,-151.683873,0.00015,2]
[356944944,1743474640340,-151.267185,0.00015,2]
[356944945,1743474640349,-151.0,0.00015,2]
[356944946,1743474640359,-180.253255,0.00015,2]
[356944947,1743474640369,-273.746774,0.00015,2]
[356944948,1743474640379,-151.0,0.00015,2]
[356944949,1743474640389,-151.0,0.00015,2]
[356944950,1743474640399,-151.0,0.00015,2]
[356944951,1743474640408,-151.0,0.00015,2]
[356944952,1743474640418,-151.0,0.00015,2]
[356944953,1743474640428,-151.0,0.00015,2]
[356944954,1743474640438,-151.0,0.00015,2]
[356944955,1743474640448,-151.0,0.00015,2]
[356944956,1743474640458,-151.0,0.00015,2]
[356944957,1743474640468,-151.0,0.00015,2]
[356944958,1743474640478,-151.0,0.00015,2]
[356944959,1743474640488,-151.0,0.00015,2]
[356944960,1743474640498,-151.0,0.00015,2]
[356944961,1743474640508,-152.3704,0.00015,2]
[356944962,1743474640517,-154.37097,0.00015,2]
[356944963,1743474640527,-151.0,0.00015,2]
[356944964,1743474640536,-151.0,0.00015,2]
[356944965,1743474640546,-196842.75942412,0.00015,2]
[356944966,1743474642470,-2612.30408965,0.00015,2]
[356944967,1743474642496,-1995.48288896,0.00015,2]
[356944968,1743474642529,-2604.8750154,0.00015,2]
[356944988,1743474643301,-354165.59485516,0.00015,2]
[356944989,1743474643312,-151.0,0.00015,2]
[356944990,1743474643322,-151.0,0.00015,2]
[356944991,1743474643332,-151.0,0.00015,2]
[356944992,1743474643342,-162.721086,0.00015,2]
[356944993,1743474643352,-152.550491,0.00015,2]
[356944994,1743474643361,-151.0,0.00015,2]
[356944995,1743474643372,-151.0,0.00015,2]
[356944996,1743474643381,-151.0,0.00015,2]
[356944997,1743474643391,-151.0,0.00015,2]
[356944998,1743474643401,-151.0,0.00015,2]
[356944999,1743474643411,-151.0,0.00015,2]
[356945000,1743474643420,-152.288377,0.00015,2]
[356945001,1743474643430,-151.0,0.00015,2]
[356945002,1743474643544,-151.0,0.00015,2]
[356945003,1743474643554,-151.0,0.00015,2]
[356945004,1743474643564,-245.121889,0.00015,2]
[356945005,1743474643574,-151.0,0.00015,2]
[356945006,1743474643583,-151.0,0.00015,2]
[356945007,1743474643593,-151.0,0.00015,2]
[356945008,1743474643602,-152.371732,0.00015,2]
[356945009,1743474643612,-151.0,0.00015,2]
[356945010,1743474643622,-151.0,0.00015,2]
[356945011,1743474643631,-283.20128,0.00015,2]
[356945012,1743474643640,-151.0,0.00015,2]
[356945013,1743474643650,-151.0,0.00015,2]
[356945014,1743474643659,-151.0,0.00015,2]
[356945015,1743474643669,-151.0,0.00015,2]
[356945016,1743474643679,-151.0,0.00015,2]
[356945018,1743474643688,-151.836874,0.00015,2]
[356945020,1743474643698,-160.407234,0.00015,2]
[356945022,1743474643707,-254.134941,0.00015,2]
[356945023,1743474643716,-151.0,0.00015,2]
[356945024,1743474643726,-151.0,0.00015,2]
[356945025,1743474643735,-151.0,0.00015,2]
[356945026,1743474643744,-151.0,0.00015,2]
[356945027,1743474643754,-151.0,0.00015,2]
[356945028,1743474643763,-156.184478,0.00015,2]
[356945029,1743474643772,-151.0,0.00015,2]
[356945030,1743474643782,-211.734077,0.00015,2]
[356945031,1743474643791,-151.0,0.00015,2]
[356945032,1743474643800,-151.0,0.00015,2]
[356945033,1743474643810,-169.423014,0.00015,2]
[356945035,1743474643819,-154.958626,0.00015,2]
[356945036,1743474643829,-151.0,0.00015,2]
[356945037,1743474643838,-151.0,0.00015,2]
[356945038,1743474643847,-157.484862,0.00015,2]
[356945039,1743474643857,-151.0,0.00015,2]
[356945040,1743474643866,-151.0,0.00015,2]
[356945041,1743474643876,-159.056938,0.00015,2]
[356945042,1743474643885,-151.0,0.00015,2]
[356945043,1743474643895,-153.56872,0.00015,2]
[356945044,1743474643904,-151.0,0.00015,2]
[356945045,1743474643913,-151.0,0.00015,2]
[356945046,1743474643923,-23894.3676839,0.00015001,2]
[356945047,1743474643932,-10248.1743893,0.00015001,2]
[356945048,1743474643942,-500.0,0.00015041,2]
[356945049,1743474643951,-500.0,0.00015041,2]
[356945050,1743474643961,-500.0,0.00015041,2]
[356945051,1743474643971,-212.0,0.00015041,2]
[356945052,1743474643980,-500.0,0.00015041,2]
[356945053,1743474643990,-364.76236522,0.00015074,2]
[356945054,1743474643999,-500.47000536,0.00015592,2]
[356945055,1743474644009,-150.0,0.00015711,2]
[356945056,1743474644020,-783.37,0.00015736,2]
[356945057,1743474644030,-200.0,0.00015795,2]
[356945058,1743474644042,-2751.0,0.00015798,2]
[356945059,1743474644051,-155.0,0.00015836,2]
[356945060,1743474644060,-150.0,0.00015846,7]
[356945061,1743474644069,-1547.37,0.00015855,2]
[356945062,1743474644079,-23900.0,0.00015879,2]
[356945063,1743474644088,-1000.0,0.00015885,2]
[356945064,1743474644098,-2571.44,0.00015938,2]
[356945065,1743474644111,-2000.0,0.00016026,2]
[356945066,1743474644120,-255.0,0.00016031,2]
[356945067,1743474644130,-180.18,0.00016073,2]
[356945068,1743474644140,-2092.28,0.00016111,2]
[356945069,1743474644149,-250.0,0.0001614,2]
[356945070,1743474644160,-150.0,0.00016378,2]
[356945071,1743474644169,-150.0,0.00016379,2]
[356945072,1743474644179,-200.0,0.00016391,2]
[356945073,1743474644190,-355.45795053,0.00016413,2]
[356945074,1743474644199,-500.52002148,0.00016438,2]
[356945075,1743474644209,-500.0,0.00016438,2]
[356945076,1743474644218,-152.417241,0.00016438,2]
[356945077,1743474644230,-500.0,0.00016443,2]
[356945078,1743474644240,-188.07,0.00016448,2]
[356945079,1743474644250,-2000.0,0.00016504,2]
[356945080,1743474644260,-462.26,0.00016505,2]
[356945081,1743474644270,-462.26,0.0001651,2]
[356945082,1743474644281,-155.303597,0.0001651,2]
[356945083,1743474644291,-462.26,0.00016514,2]
[356945084,1743474644301,-462.26,0.00016518,2]
[356945085,1743474644313,-462.26,0.00016523,2]
[356945086,1743474644324,-462.26,0.00016527,2]
[356945087,1743474644334,-462.26,0.00016531,2]
[356945088,1743474644344,-462.26,0.00016536,2]
[356945089,1743474644354,-462.26,0.0001654,2]
[356945090,1743474644364,-462.26,0.00016545,2]
[356945091,1743474644374,-462.26,0.00016549,2]
[356945092,1743474644383,-462.26,0.00016553,2]
[356945093,1743474644394,-462.26,0.00016558,2]
[356945094,1743474644404,-462.26,0.00016562,2]
[356945095,1743474644414,-462.26,0.00016566,2]
[356945096,1743474644424,-462.26,0.00016571,2]
[356945097,1743474644434,-462.26,0.00016575,2]
[356945098,1743474644444,-151.0,0.00016579,2]
[356945099,1743474644455,-158.539199,0.00016579,2]
[356945100,1743474644467,-462.26,0.00016579,2]
[356945101,1743474644484,-462.26,0.00016584,2]
[356945102,1743474644496,-462.26,0.00016588,2]
[356945103,1743474644513,-165.0,0.00016658,2]
[356945104,1743474644524,-151.0,0.00016686,2]
[356945105,1743474644535,-151.0,0.00016686,2]
[356945106,1743474644546,-166.112063,0.00016686,2]
[356945107,1743474644559,-239.114763,0.00016686,2]
[356945108,1743474644570,-151.0,0.00016686,2]
[356945109,1743474644581,-154.325662,0.00016686,2]
[356945110,1743474644593,-20295.3,0.00016686,2]
[356945111,1743474644605,-500.0,0.00016722,2]
[356945112,1743474644615,-962.51,0.00016784,2]
[356945113,1743474644626,-250.0,0.00017,2]
[356945114,1743474644636,-300.0,0.00017107,2]
[356945115,1743474644646,-249.29,0.00017222,2]
[356945116,1743474644655,-334.0,0.00017253,2]
[356945117,1743474644666,-166.66,0.00017357,2]
[356945118,1743474644677,-1000.0,0.00017871,2]
[356945119,1743474644688,-166.66,0.00017929,2]
[356945120,1743474644698,-300.0,0.00018355,2]
[356945121,1743474644708,-153.047632,0.00018356,2]
[356945122,1743474644718,-151.0,0.00018356,2]
[356945123,1743474644734,-153.088208,0.00018356,2]
[356945124,1743474644744,-151.0,0.00018356,2]
[356945125,1743474644754,-298.320962,0.00018356,2]
[356945126,1743474644764,-258.801594,0.00018356,2]
[356945127,1743474644774,-199.347985,0.00018356,2]
[356945128,1743474644785,-158.224633,0.00018356,2]
[356945129,1743474644794,-151.0,0.00018356,2]
[356945130,1743474644805,-265.300646,0.00018356,2]
[356945131,1743474644816,-151.0,0.00018356,2]
[356945132,1743474644826,-158.740745,0.00018356,2]
[356945133,1743474644836,-152.142187,0.00018356,2]
[356945134,1743474644846,-152.639876,0.00018356,2]
[356945135,1743474644856,-237.0889,0.00018356,2]
[356945136,1743474644866,-237.742212,0.00018356,2]
[356945137,1743474644876,-153.042072,0.00018356,2]
[356945138,1743474644885,-151.0,0.00018356,2]
[356945139,1743474644895,-151.0,0.00018356,2]
[356945140,1743474644905,-151.0,0.00018356,2]
[356945141,1743474644914,-217.498219,0.00018356,2]
[356945142,1743474644924,-83080.86,0.00018356,2]
[356945143,1743474644934,-345.6,0.00018421,2]
[356945144,1743474644945,-166.66,0.00018502,2]
[356945145,1743474644954,-249.29,0.00018592,2]
[356945146,1743474644964,-2873.63,0.00018596,2]
[356945147,1743474644975,-325.7611551,0.00018955,2]
[356945148,1743474644984,-11498.87431797,0.00018956,2]
[356945149,1743474644994,-5798.04513744,0.00018956,2]
[356945150,1743474645126,-869.30755836,0.00018956,2]
[356945151,1743474645137,-1759.35999998,0.00018956,2]
[356945164,1743474646443,-1040.42195618,0.00018956,2]
[356945165,1743474647079,-524.28831411,0.00018956,2]
[356945166,1743474647185,-1436.74816541,0.00018956,2]
[356945167,1743474647232,-3194.7570458,0.00018956,2]
[356945168,1743474647241,-500.0,0.00018973,2]
[356945169,1743474647252,-338.84476655,0.00019,2]
[356945170,1743474647374,-262.25718765,0.00019,2]
[356945171,1743474647387,-326.88027612,0.00019,2]
[356945172,1743474647406,-1513.4,0.00019,2]
[356945173,1743474647418,-3682.99999995,0.00019,2]
[356945174,1743475023736,171.40485075,0.00019,21]
[356945175,1743475052913,172.8,0.00026652,120]
[356945176,1743475053138,172.8,0.00029983,120]
[356945177,1743475086640,251.97194102,0.0003,30]
[356945188,1743475819563,233.44926548,0.00011889,2]
[356945189,1743475832327,-447.9066844,0.000149,2]
[356945190,1743475832339,-94.5425156,0.000149,2]
[356945191,1743475832347,-150.0,0.00014996,2]
[356945192,1743475832356,-150.0,0.0001639,2]
[356945193,1743475832371,-150.0,0.0001639,2]
[356945194,1743475832380,-250.0,0.00017,2]
[356945195,1743475832389,-808.562605,0.00018241,2]
[356945196,1743475832399,-861.87436626,0.00018333,2]
[356945197,1743475832411,-4.37563374,0.00018333,2]
[356945198,1743475832419,-364.76236522,0.00018687,2]
[356945199,1743475832429,-160.03200104,0.00018851,2]
[356945200,1743475832440,-839.96799896,0.00018851,2]
[356945201,1743475832452,-739.16348836,0.00018892,2]
[356945202,1743475832465,-2011.83651164,0.00018892,2]
[356945203,1743475832475,-16198.3456499,0.00018994,2]
[356945204,1743475832485,-6947.3891603,0.00018995,2]
[356945205,1743475832495,-255.46376831,0.00019,2]
[356945206,1743475832504,-300.0,0.00019,2]
[356945207,1743475832514,-166.66,0.00019075,2]
[356945208,1743475832523,-200.0,0.00019174,2]
[356945209,1743475832534,-250.0,0.00019242,2]
[356945210,1743475832543,-150.0,0.00019266,2]
[356945211,1743475832552,-10807.51462956,0.00019308,2]
[356945212,1743475832564,-531.14851368,0.00019308,2]
[356945225,1743475838346,-1378.64863775,0.00019308,2]
[356945226,1743475840323,-479.21492118,0.00019308,2]
[356945227,1743475840432,-456.71608042,0.00019308,2]
[356945228,1743475840537,-500.0,0.00019308,2]
[356945229,1743475840640,-3488.83020128,0.00019308,2]
[356945305,1743475846398,-878.49203374,0.00019294,2]
[356945307,1743476400968,3971.8859831,0.00033822,30]
[356945308,1743476467412,500.0,0.00033822,120]
[356945309,1743476491533,176.18,0.00013699,2]
[356945310,1743476492129,176.18,0.00013699,2]
[356945311,1743476492805,176.20611704,0.00013699,2]
[356945312,1743476510279,529.09,0.00033822,120]
[356945313,1743476660942,-822.93,0.00016844,2]
[356945314,1743476660965,-150.0,0.00017205,2]
[356945315,1743476660987,-789.0,0.00017568,2]
[356945316,1743476661010,-4092.0,0.00017568,2]
[356945317,1743476661033,-910.981,0.00017568,2]
[356945318,1743476661057,-543.0,0.00017568,2]
[356945319,1743476661079,-1452.68,0.00017568,2]
[356945320,1743476661101,-150.0,0.00017687,2]
[356945321,1743476661123,-150.0,0.00018528,2]
[356945322,1743476661145,-152.911511,0.00018939,2]
[356945323,1743476661168,-250.0,0.00019035,2]
[356945324,1743476661190,-364.76236522,0.0001905,2]
[356945325,1743476661213,-822.93,0.00019108,2]
[356945326,1743476661235,-300.0,0.00019228,2]
[356945327,1743476661257,-17048.80512378,0.00019229,2]
[356945331,1743477032422,-250.0,0.00017,2]
[356945332,1743477032432,-152.911,0.00018121,2]
[356945333,1743477032442,-3949.0,0.00018121,2]
[356945334,1743477032562,-1017.0,0.00018121,2]
[356945335,1743477032572,-150.0,0.00018646,2]
[356945336,1743477032581,-150.0,0.00018675,2]
[356945337,1743477032591,-150.0,0.00018751,7]
[356945338,1743477032601,-300.0,0.00019,2]
[356945339,1743477032610,-150.0,0.00019062,2]
[356945340,1743477032620,-300.0,0.00019107,2]
[356945341,1743477032629,-5296.53,0.00019108,2]
[356945342,1743477032639,-1134.0,0.000192,2]
[356945343,1743477032649,-6851.19487622,0.00019229,2]
[356945344,1743477032658,-1000.0,0.00019236,2]
[356945345,1743477032668,-2000.0,0.0001925,2]
[356945346,1743477032677,-2000.0,0.00019255,2]
[356945347,1743477032687,-178.96,0.00019314,2]
[356945348,1743477032696,-10396.1204167,0.00019321,2]
[356945349,1743477032706,-4553.0390815,0.00019334,2]
[356945350,1743477032715,-151.39150498,0.00019338,2]
[356945351,1743477032725,-247.02557583,0.00019338,2]
[356945352,1743477032735,-500.0,0.00019338,2]
[356945353,1743477032744,-500.0,0.00019338,2]
[356945354,1743477032753,-362.66886926,0.00019338,2]
[356945355,1743477032763,-246.97,0.00019339,2]
[356945356,1743477032773,-9999.99,0.00019339,2]
[356945357,1743477032782,-175.02,0.00019339,2]
[356945358,1743477032794,-150.99,0.00019339,2]
[356945359,1743477032804,-280.0,0.00019339,2]
[356945360,1743477032814,-999.99,0.00019339,2]
[356945361,1743477032823,-2288.23,0.00019339,2]
[356945362,1743477032836,-217.14,0.00019347,2]
[356945363,1743477032846,-9999.99,0.00019347,2]
[356945364,1743477032856,-1122.11,0.00019347,2]
[356945365,1743477032866,-1233.11,0.00019347,2]
[356945366,1743477032877,-773.68,0.00019373,2]
[356945367,1743477032887,-1000.0,0.000195,2]
[356945368,1743477032897,-200.0,0.00019783,2]
[356945369,1743477032907,-200.0,0.00019867,2]
[356945370,1743477032918,-151.0,0.00019888,2]
[356945371,1743477032928,-1689.4067,0.000199,2]
[356945372,1743477032937,-15389.8951,0.000199,2]
[356945373,1743477032947,-742.8416,0.000199,2]
[356945374,1743477032957,-169.3661,0.000199,2]
[356945375,1743477032967,-5382.054,0.000199,2]